Workbook

Sheet EXAMPLE
E2: Domestic Intercultural Immersions BUDGET PAGE
E3: EXAMPLE
B5: Program Name: | D5: Example UWEC Immersion Program
B7: 12 | C7: Target Number of Fee-Paying Students
B8: 2 | C8: Number of Non-Fee-Paying Students (Student Leaders)
B9: 2 | C9: Number of Faculty / Staff Leaders
B11: BUDGET ESTIMATES
A12: PROGRAM COSTS | B12: Amount | C12: Quantity | E12: TRAVEL AND SUPPLIES (please list details in space provided below each line item as needed)
B13: 300 | C13: 16 | D13: =C13*B13 -> 4800 | E13: Transportation to and from DII Destination
E14: Flight from MSP
B15: 50 | C15: 16 | D15: =C15*B15 -> 800 | E15: Local transportation
E16: 7-day public transportation pass
B17: 700 | C17: 10 | D17: =C17*B17 -> 7000 | E17: Housing
E18: Hotel @ $100/night per 4 students (5 rooms) + 2 faculty rooms x 9 nights
B19: 400 | C19: 2 | D19: 800 | E19: Faculty / Staff Meals
E20: Breakfast included in hotel, lunch @ $15 + dinner @ $25 x 10 days
B21: =200+480+100 -> 780 | C21: 1 | D21: =C21*B21 -> 780 | E21: Local Services
E22: Tour guide, bike rental, lecture rooms
B23: 45 | C23: 14 | D23: 630 | E23: Tickets / Admissions
E24: 3 museums
B25: 500 | C25: 2 | D25: 1000 | E25: Honoraria to Individuals or Organizations
E26: For lectures from local faculty
B27: 200 | C27: 1 | D27: =C27*B27 -> 200 | E27: Supplies (please list if applicable)
E28: Gas, pens, cell / data usage, masks and gloves
B29: 46.5 | C29: =C13 -> 16 | D29: =C29*B29 -> 744 | E29: Study Away Travel Insurance (all Immersions now have this; $46.50 per student)
B31: 30 | C31: =B7+B8 -> 14 | D31: =B31*C31 -> 420 | E31: $30 Application Fee
D33: =SUM(D13:D31) -> 17174 | E33: Subtotal of Program Costs
D34: =D33/B7 -> 1431.166667 | E34: Estimated Program Fee per Student
D35: =D34*0.9 -> 1288.05 | E35: FLIIE contribution per student (90% of Estimated Program Fee per Student)
D36: =D34-D35 -> 143.1166667 | E36: STUDENT PROGRAM FEE
A37: ADDITIONAL COSTS
D38: 125 | E38: Estimated cost for meals (per student)
D40: 100 | E40: Personal Expenses (per student)
D42: =SUM(D38:D40) -> 225 | E42: Additional Costs Per Student
D43: =D36+D42 -> 368.1166667 | E43: TOTAL COST PER STUDENT
A44: FLIIE CONTRIBUTIONS
D45: =D33*0.9 -> 15456.6 | E45: Total Estimated FLIIE contributions to program fees
B46: stipend | C46: faculty
B47: 1500 | C47: =B9 -> 2 | D47: =B47*C47 -> 3000 | E47: Stipends to Faculty / Staff Leaders ($1,500 per faculty / staff member)
B48: stipend | C48: students
B49: 500 | C49: =B8 -> 2 | D49: =B49*C49 -> 1000 | E49: Stipends to Student Leaders ($500 per student leader)
D51: =SUM(D45:D49) -> 19456.6 | E51: TOTAL FLIIE CONTRIBUTIONS from Blugold Commitment Differential Tuition
